[Event "Swedish Championship U20 2022"]
[Site "Uppsala"]
[Date "2022.07.05"]
[Round "4.1"]
[White "Olsson, William"]
[Black "Nord, Alexander"]
[Result "1-0"]
[ECO "A20"]
[WhiteElo "2284"]
[BlackElo "2200"]
[Annotator "TA"]
[PlyCount "197"]
[EventDate "2022.07.01"]
[EventType "tourn"]
[EventCountry "SWE"]
[SourceTitle "playchess.com"]
[Source "ChessBase"]
[SourceQuality "1"]
[TimeControl "40/5400+30:1800+30"]

{[%evp 11,197,0,0,0,21,9,8,12,19,23,35,36,77,71,64,57,57,43,95,47,65,45,56,43,54,42,54,45,48,29,38,26,73,56,75,74,74,62,94,51,64,53,80,28,28,26,18,20,29,7,9,6,11,13,23,0,23,15,27,22,25,21,27,12,36,30,106,106,109,116,131,116,122,77,114,116,108,77,77,62,128,128,129,128,128,136,136,137,136,135,140,133,172,139,147,143,169,156,156,141,162,156,164,114,126,111,163,134,175,118,152,164,170,168,29974,29975,29995,1344,29990,645,635,641,637,631,638,560,614,596,643,546,760,557,539,432,1669,1149,1155,627,610,589,507,484,1159,1042,782,583,2147,29970,2461,2360,2090,2037,29974,29975,29975,29974,29974,29974,29974,29975,29975,288,29976,29977,29977,29978,29978,29979,29979,29979,29979,29980,29980,29981,29981,29982,29982,29983,29984,29984,29984,29985,29985,29986,29991,29990,29995,29996]} 1. c4 {[%emt 0:00:02]} e5 {[%emt 0:00:09]} 2. g3 {[%emt 0:00:04]} Nf6 {[%emt 0:00:09]} 3. Bg2 {[%emt 0:00:04]} d5 {[%emt 0:00:10]} 4. cxd5 {[%emt 0:00:04]} Nxd5 {[%emt 0:00:04]} 5. Nf3 {[%emt 0:00:05]} Nc6 {[%emt 0:00:06]} 6. O-O {[%emt 0:00:04]} Nb6 {[%emt 0:00:37]} 7. b3 {[%emt 0:00:06] A20: English Opening: 1...e5.} Bd6 {[%emt 0:08:30] 7...Be6 is the modern continuation.} 8. Bb2 {[%emt 0:03:53]} O-O {[%emt 0:01:19]} 9. Nc3 {[%emt 0:02:12] The position is equal.} Qe7 {[%emt 0:11:56]} 10. Nb5 {[%emt 0:12:46] [#]} f6 $146 {[%emt 0:15:59]} ({Predecessor:} 10... f5 11. Nxd6 cxd6 12. e3 Be6 13. d3 a5 14. a3 Bd5 15. Rb1 h6 16. Ba1 Rae8 {½-½ (25) Koegler,K (2542)-Vinchev,S (2512) GER email 2016}) 11. d4 {[%emt 0:05:20]} exd4 {[%emt 0:07:48]} 12. Nxd6 {[%emt 0:01:37]} Qxd6 {[%emt 0:00:12]} 13. Nxd4 {[%emt 0:00:04]} Nxd4 {[%emt 0:00:35]} 14. Bxd4 {[%emt 0:00:37]} Rd8 {[%emt 0:03:39] [#]} (14... c6 $14) 15. e3 {[%emt 0:02:40]} ({Better is} 15. Bc5 $1 $16 Qd7 (15... Qxd1 16. Raxd1) 16. Qxd7 Rxd7 17. Rad1) 15... c6 $14 {[%emt 0:01:14]} 16. Qc2 {[%emt 0:00:52]} Be6 {[%emt 0:04:06]} 17. Be4 {[%emt 0:03:30]} h6 {[%emt 0:00:36]} 18. Bg2 {[%emt 0:01:49]} Kh8 {[%emt 0:06:17]} 19. Rfd1 {[%emt 0:06:34]} Qe7 {[%emt 0:00:30]} 20. e4 {[%emt 0:01:50]} Nd7 {[%emt 0:02:20]} 21. f4 {[%emt 0:02:35]} Bg8 {[%emt 0:02:48]} (21... c5 $11 22. Bf2 Rac8) 22. Re1 {[%emt 0:04:18]} Rdc8 {[%emt 0:05:01]} 23. Rad1 {[%emt 0:04:18]} Rd8 {[%emt 0:04:02]} 24. Bf2 {[%emt 0:04:43]} a5 {[%emt 0:02:36]} 25. Rd3 {[%emt 0:04:33]} Nf8 $1 {[%emt 0:01:12]} 26. Rxd8 {[%emt 0:01:26]} Qxd8 {[%emt 0:00:14]} 27. e5 {[%emt 0:00:08]} (27. Bf3 $16) 27... fxe5 $1 $11 {[%emt 0:02:28]} 28. Rxe5 {[%emt 0:00:07]} Nd7 {[%emt 0:00:29]} 29. Re1 {[%emt 0:01:07]} Nf6 {[%emt 0:00:16]} 30. Qb2 {[%emt 0:02:49]} a4 {[%emt 0:08:46]} 31. Bd4 {[%emt 0:02:29]} axb3 {[%emt 0:00:11]} 32. axb3 {[%emt 0:00:05][%cal Ba2b3,Bb3b4][%mdl 32]} Qf8 {[%emt 0:01:02]} 33. Qc3 {[%emt 0:03:21]} Qf7 {[%emt 0:01:37]} 34. b4 {[%emt 0:01:25]} Re8 {[%emt 0:01:15]} 35. Rxe8 {[%emt 0:02:18]} Nxe8 {[%emt 0:00:02]} 36. h3 {[%emt 0:07:13]} Qd7 {[%emt 0:00:41]} 37. Qc5 {[%emt 0:01:07]} Qf7 {[%emt 0:02:24]} 38. b5 {[%emt 0:02:24]} cxb5 {[%emt 0:00:22]} (38... Qd7 $1 $11 {remains equal.}) 39. Qxb5 $16 {[%emt 0:00:52]} Nd6 {[%emt 0:01:04]} 40. Qb6 $36 {[%emt 0:00:55][%mdl 2048] White is on the roll.} Qd7 {[%emt 0:03:59]} 41. Be5 {[%emt 0:33:52] A strong pair of Bishops.} Nf7 {[%emt 0:06:00]} 42. Bc7 {[%emt 0:00:00]} ({But not} 42. Qxb7 $6 Nxe5 43. fxe5 Qd4+ 44. Kh2 Qxe5 $11) 42... Qd1+ {[%emt 0:04:08]} 43. Kh2 {[%emt 0:00:00]} Qd2 {[%emt 0:00:27]} 44. Qxb7 {[%emt 0:00:00]} Nd6 {[%emt 0:00:53]} 45. Qc6 {[%emt 0:00:00]} Nf5 {[%emt 0:03:02]} (45... Nc4 $1 $14) 46. Be5 $1 {[%emt 0:00:00] Threatens to win with g4.} Qe3 {[%emt 0:01:49]} 47. Qc3 {[%emt 0:00:00][%cal Oe5g7] aiming for Bxg7+! Active counter play!} ({Resist} 47. Qg6 Be6 $14) 47... Qf2 {[%emt 0:05:49]} 48. Qf3 {[%emt 0:00:00]} Qd2 {[%emt 0:01:52] [#]} 49. Bc3 $1 {[%emt 0:00:00]} Qc2 {[%emt 0:02:20]} 50. Be1 {[%emt 0:00:00]} Nd4 {[%emt 0:02:28]} 51. Qf2 {[%emt 0:00:00]} Qc5 {[%emt 0:01:12]} 52. Qd2 {[%emt 0:00:00]} Nf5 {[%emt 0:01:50]} 53. Bf2 {[%emt 0:00:00]} Qe7 {[%emt 0:00:28]} 54. Qd3 {[%emt 0:00:00]} Qf7 {[%emt 0:00:44]} 55. Qe2 {[%emt 0:00:00]} Qd7 {[%emt 0:00:25]} 56. g4 {[%emt 0:00:00]} Ne7 {[%emt 0:00:16]} 57. Kg3 {[%emt 0:00:00]} (57. Qe5 $18) 57... Bd5 {[%emt 0:01:24]} 58. Bf1 {[%emt 0:00:00]} Bg8 {[%emt 0:01:43]} (58... Bc6 $16 59. Qd3 Nd5) 59. Qb5 {[%emt 0:00:00]} Qd2 {[%emt 0:00:53]} 60. Qd3 {[%emt 0:00:00]} (60. Qe5 $18 {Bd4 would kill now.} Nc6 61. Qe3) 60... Qc1 {[%emt 0:00:18]} 61. Bg2 {[%emt 0:00:00] Prevents Nd5.} Qc7 {[%emt 0:00:57]} 62. Bd4 {[%emt 0:00:00]} Nc8 $2 {[%emt 0:01:32]} (62... Bf7 $18 63. Qe3 Kg8) 63. Qg6 {[%emt 0:02:01]} Qe7 {[%emt 0:00:46]} 64. Qxh6+ {[%emt 0:00:35]} Bh7 {[%emt 0:00:01] [#]} 65. Qc6 {[%emt 0:00:12]} (65. Be4 $142 $1 {[%mdl 512]} Qa3+ 66. Kh4 Qe7+ 67. g5 Kg8 68. Qxh7+ Kf8 69. Qf5+ Qf6 70. Qxc8+ Ke7 71. gxf6+ gxf6 72. Bc5+ Kf7 73. Qf8+ Ke6 74. Qe8#) 65... Nd6 $18 {[%emt 0:01:07]} 66. Be5 {[%emt 0:01:32]} Nf7 {[%emt 0:00:25]} 67. Qc7 {[%emt 0:02:09]} Qa3+ {[%emt 0:00:26]} 68. Qc3 {[%emt 0:00:07]} Qf8 {[%emt 0:00:31]} 69. Bd4 {[%emt 0:02:42]} Nd6 {[%emt 0:01:38]} 70. Qe3 {[%emt 0:00:33] Prevents Be4.} Nc4 {[%emt 0:00:46]} 71. Qf3 {[%emt 0:01:39] Black must now prevent Qd5.} Nd6 {[%emt 0:00:52]} 72. Qa8 {[%emt 0:01:11] Inhibits Be4.} Ne8 {[%emt 0:00:41]} (72... Qxa8 $142 73. Bxa8 Be4 74. Bxe4 Nxe4+ 75. Kf3 Nd2+ 76. Ke3 Nc4+ 77. Ke4 Kh7) 73. Be5 {[%emt 0:00:26]} Qe7 {[%emt 0:00:32]} 74. Bf3 {[%emt 0:00:52] Hoping for h4.} Bg8 {[%emt 0:00:24]} 75. Qc6 {[%emt 0:01:12] Intending Qh6+ and mate.} Bf7 {[%emt 0:00:36]} 76. g5 {[%emt 0:00:53][%cal Bg4g5,Bg5g6][%mdl 32]} Be6 {[%emt 0:00:34]} (76... Qa7 $142 77. g6 Bg8) 77. h4 {[%emt 0:01:31] And now h5 would win.} Kg8 {[%emt 0:00:38]} 78. Bg4 {[%emt 0:01:53]} Bf7 {[%emt 0:00:33]} 79. g6 {[%emt 0:02:03]} Ba2 {[%emt 0:00:19]} 80. Qd7 {[%emt 0:00:49]} Qxd7 {[%emt 0:01:26]} 81. Bxd7 {[%emt 0:00:09]} Nf6 {[%emt 0:00:05]} 82. Bxf6 {[%emt 0:00:44]} gxf6 {[%emt 0:00:02] KB-KB} 83. f5 {[%emt 0:00:32]} Kg7 {[%emt 0:00:13]} 84. Be6 {[%emt 0:01:56]} Bb1 {[%emt 0:00:28]} 85. Kf4 {[%emt 0:00:06]} Bc2 {[%emt 0:00:12]} 86. Bd5 {[%emt 0:00:05] White threatens Bf3 and mate.} Bd3 $2 {[%emt 0:00:16]} (86... Bd1 $18 87. Bf3 Ba4) 87. Bf3 {[%emt 0:00:39] White mates.} Bc2 {[%emt 0:00:20]} 88. Bg4 {[%emt 0:00:06]} Bd3 {[%emt 0:00:38]} 89. Ke3 {[%emt 0:00:10]} Bc2 {[%emt 0:00:56]} 90. Kd4 {[%emt 0:00:10]} Bb3 {[%emt 0:00:59]} 91. Kc5 {[%emt 0:00:07]} Bc2 {[%emt 0:00:34]} 92. Kd6 {[%emt 0:00:05]} Bb3 {[%emt 0:00:46]} 93. Ke7 {[%emt 0:00:07]} Bc4 {[%emt 0:00:44]} 94. h5 {[%emt 0:00:09]} Bb5 {[%emt 0:00:02]} 95. Bh3 {[%emt 0:00:17]} Bc6 {[%emt 0:00:45]} 96. h6+ {[%emt 0:00:08]} Kxh6 {[%emt 0:00:02]} 97. Kxf6 {[%emt 0:00:06]} Be8 {[%emt 0:00:06]} 98. Bf1 {[%emt 0:00:15]} Bd7 {[%emt 0:00:29]} 99. g7 {[%emt 0:00:21] Weighted Error Value: White=0.12 (very precise) /Black=0.14 (very precise)} 1-0

[Event "Swedish Championship U20 2022"]
[Site "Uppsala"]
[Date "2022.07.05"]
[Round "4.2"]
[White "Soderstrom, Adrian"]
[Black "Wernberg, Hugo"]
[Result "1/2-1/2"]
[ECO "E16"]
[WhiteElo "2292"]
[BlackElo "2316"]
[Annotator "TA"]
[PlyCount "107"]
[EventDate "2022.07.01"]
[EventType "tourn"]
[EventCountry "SWE"]
[SourceTitle "playchess.com"]
[Source "ChessBase"]
[SourceQuality "1"]
[TimeControl "40/5400+30:1800+30"]

{[%evp 14,107,8,9,51,16,39,51,174,119,128,131,130,137,145,143,163,123,220,193,232,243,284,154,184,76,75,80,84,87,83,55,67,56,78,79,85,80,76,75,83,79,91,69,92,81,180,85,105,85,124,120,113,110,134,137,127,92,110,110,114,118,147,15,80,15,81,51,42,0,0,0,8,0,0,0,0,0,8,8,8,8,8,8,16,11,21,0,1,0,0,0,0,0,0,0]} 1. d4 {[%emt 0:00:06]} Nf6 {[%emt 0:00:10]} 2. c4 {[%emt 0:00:08]} e6 {[%emt 0:00:14]} 3. Nf3 {[%emt 0:00:18]} b6 {[%emt 0:00:28]} 4. g3 {[%emt 0:00:19]} Bb4+ {[%emt 0:00:44]} 5. Nbd2 {[%emt 0:02:05]} Bb7 {[%emt 0:01:12]} 6. Bg2 {[%emt 0:00:25]} O-O {[%emt 0:01:03]} 7. O-O {[%emt 0:00:18]} d5 {[%emt 0:01:19]} 8. Ne5 {[%emt 0:18:11]} Nfd7 {[%emt 0:04:51] 8...a5 is becoming the main line. E16: Queen's Indian: 4 g3 Bb7 5 Bg2 Bb4+.} 9. Ndf3 {[%emt 0:03:32] [#]} (9. Nd3 $5 {[%cal Rd3b4]} a5 10. cxd5 $14) 9... dxc4 $146 {[%emt 0:13:52]} ({Predecessor:} 9... Nxe5 10. Nxe5 Nd7 11. Nxd7 Qxd7 12. c5 bxc5 13. a3 Ba5 14. dxc5 c6 15. b4 Bc7 16. f4 {1-0 (44) Vichnar,D (2223)-Blecha,M (2194) Czech Republic 2011}) 10. Qc2 {[%emt 0:03:53]} g6 {[%emt 0:17:34]} (10... Nxe5 $2 11. Ng5 Ng6 12. Bxb7 $18) (10... Qc8 $14) 11. Nxc4 {[%emt 0:07:23]} (11. Bh6 $18) 11... Be7 $16 {[%emt 0:09:07]} 12. Rd1 {[%emt 0:03:23]} Bf6 {[%emt 0:07:58]} 13. Bf4 {[%emt 0:01:50]} Qe7 {[%emt 0:13:21]} 14. Rac1 {[%emt 0:05:39] 0x0.001b69f462f8dp-1022s more active pieces.} (14. Bxc7 $6 Rc8 15. Bxb8 Raxb8 $14) 14... Na6 {[%emt 0:01:25]} 15. Qa4 {[%emt 0:03:08]} g5 {[%emt 0:16:35]} (15... Rad8 $16 {is a better defense.}) 16. Be3 {[%emt 0:14:13]} Nab8 {[%emt 0:04:49][%cal Ba6b8,Bb8d7,Bd7c5][%mdl 32]} 17. Nce5 {[%emt 0:02:12]} c5 {[%emt 0:02:09]} 18. Nxd7 {[%emt 0:15:43]} (18. Ng4 $18) 18... Nxd7 {[%emt 0:00:35]} 19. dxc5 {[%emt 0:07:58]} ({Don't do} 19. Bxg5 $6 Bxg5 20. Nxg5 Bxg2 21. Kxg2 b5 22. Qxb5 Rab8 $14) (19. h4 $18 {and White stays clearly on top.}) 19... Nxc5 {[%emt 0:00:08]} 20. Qg4 {[%emt 0:03:21][%cal Rf3g5]} Bxf3 {[%emt 0:00:22]} 21. exf3 {[%emt 0:00:05]} Rad8 {[%emt 0:01:55]} 22. f4 {[%emt 0:00:01]} Bxb2 {[%emt 0:00:18]} 23. Rb1 {[%emt 0:00:17] [#] aiming for Rxd8.} Bg7 {[%emt 0:00:36]} 24. fxg5 {[%emt 0:00:02]} Rxd1+ {[%emt 0:00:41]} 25. Rxd1 {[%emt 0:00:01]} Rd8 {[%emt 0:00:15]} 26. h4 {[%emt 0:00:20][%cal Bh2h4,Bh4h5][%mdl 32]} Rxd1+ {[%emt 0:00:18]} 27. Qxd1 {[%emt 0:00:02]} Qd7 {[%emt 0:00:54]} 28. Qf3 {[%emt 0:01:19]} Qc8 {[%emt 0:01:05]} 29. h5 {[%emt 0:00:13]} Nd3 {[%emt 0:00:21] [#]} (29... Qd8 $16) 30. Qe4 {[%emt 0:00:30]} (30. h6 $1 $18 {[%cal Rh6g7]} Bh8 31. Qe4) 30... Nc5 {[%emt 0:00:35]} 31. Qg4 {[%emt 0:00:03]} (31. Qf4 {seems wilder.} Qd7 32. Kh2 Qd1 33. h6) 31... Qd7 {[%emt 0:00:18]} 32. g6 {[%emt 0:01:31]} hxg6 {[%emt 0:00:30]} 33. hxg6 {[%emt 0:00:02]} fxg6 {[%emt 0:00:17]} 34. Qxg6 {[%emt 0:00:02]} Qf7 {[%emt 0:00:14]} 35. Qb1 {[%emt 0:00:50]} Qd7 {[%emt 0:00:59]} 36. Bh3 {[%emt 0:00:39]} Kf7 {[%emt 0:00:31]} 37. Bg4 {[%emt 0:01:35]} Qd3 {[%emt 0:00:34] Against Qh7} 38. Qc1 {[%emt 0:00:02]} (38. Qb4 $16) 38... Qd5 {[%emt 0:00:24]} (38... Bd4 $1 $11 {remains equal.}) 39. a3 {[%emt 0:06:57]} (39. Qc2 $16) 39... Qe5 {[%emt 0:00:19]} (39... Bd4 $1 $11 {keeps the balance.}) 40. Kh2 {[%emt 0:01:00]} Qd5 {[%emt 0:00:52]} 41. Qf1 {[%emt 0:02:22]} Bd4 {[%emt 0:02:24] The position is equal.} 42. Qc1 {[%emt 0:09:34]} Qe5 {[%emt 0:09:28]} 43. Bxd4 {[%emt 0:02:23]} Qxd4 $11 {[%emt 0:00:11][%mdl 4096] Endgame KQB-KQN} 44. Bh5+ {[%emt 0:00:13]} Ke7 {[%emt 0:01:52]} 45. Qc2 {[%emt 0:02:57]} Nd3 {[%emt 0:07:46]} 46. Qc7+ {[%emt 0:01:30]} Qd7 {[%emt 0:01:45]} 47. Qc3 {[%emt 0:00:39]} Qd5 {[%emt 0:04:24]} 48. Qg7+ {[%emt 0:00:17]} Kd6 {[%emt 0:02:41]} 49. Qf8+ {[%emt 0:01:22]} Kc7 {[%emt 0:00:33]} 50. Bf3 {[%emt 0:06:01]} Qd4 {[%emt 0:02:11]} 51. Qf7+ {[%emt 0:03:10]} Kd6 {[%emt 0:00:54]} 52. Qf8+ {[%emt 0:00:27]} Kd7 {[%emt 0:00:35]} 53. Qf7+ {[%emt 0:01:44]} Kd6 {[%emt 0:00:05]} 54. Qf8+ {[%emt 0:04:27] Blacks defense is rewarded with a draw.  Weighted Error Value: White=0.24 (precise) /Black=0.23 (precise)} 1/2-1/2

[Event "Swedish Championship U20 2022"]
[Site "Uppsala"]
[Date "2022.07.05"]
[Round "4.3"]
[White "Ostlund, Joar"]
[Black "Seo, Jung Hyun"]
[Result "0-1"]
[ECO "D31"]
[WhiteElo "2222"]
[BlackElo "2102"]
[Annotator "TA"]
[PlyCount "98"]
[EventDate "2022.07.01"]
[EventType "tourn"]
[EventCountry "SWE"]
[SourceTitle "playchess.com"]
[Source "ChessBase"]
[SourceQuality "1"]
[TimeControl "40/5400+30:1800+30"]

{[%evp 9,98,22,29,25,38,51,57,25,28,20,25,25,22,8,9,7,18,6,7,6,12,8,8,10,18,9,10,8,17,19,19,5,10,12,10,15,35,30,78,77,77,76,89,87,87,87,100,93,91,0,7,-14,-22,-172,-167,-167,-167,-167,-166,-190,-190,-189,-170,-185,-172,-167,-156,-136,-123,-272,-265,-265,-265,-364,-366,-358,-358,-364,-365,-362,-362,-512,-504,-491,-440,-605,-595,-844,-550,-810,-810]} 1. d4 {[%emt 0:00:04]} d5 {[%emt 0:00:06]} 2. c4 {[%emt 0:00:06]} e6 {[%emt 0:00:02]} 3. Nc3 {[%emt 0:00:09]} a6 {[%emt 0:00:15]} 4. cxd5 {[%emt 0:00:35]} exd5 {[%emt 0:00:03]} 5. Nf3 {[%emt 0:02:07]} c6 {[%emt 0:00:04]} 6. Bf4 {[%emt 0:02:37] D31: Queen's Gambit Declined: Semi-Slav without ...Nf6 (+ Marshall Gambit and Noteboom) and Exchange Variation lines without ...Nf6.} Bd6 {[%emt 0:00:08]} 7. Bxd6 {[%emt 0:00:46]} Qxd6 {[%emt 0:00:05]} 8. e3 {[%emt 0:00:33] White is slightly better.} (8. e4 $5 {[%cal Rf1d3]}) 8... Bf5 {[%emt 0:00:48]} 9. Qb3 {[%emt 0:01:22]} b5 {[%emt 0:06:14]} 10. a4 {[%emt 0:14:39][%cal Ra4b5]} b4 {[%emt 0:01:01]} 11. Na2 {[%emt 0:00:07][%cal Bc3a2,Ba2c1,Bc1b3][%mdl 32]} a5 {[%emt 0:00:07]} 12. Bd3 {[%emt 0:00:28]} Bxd3 {[%emt 0:00:26]} 13. Qxd3 {[%emt 0:00:05]} Nf6 {[%emt 0:01:41]} 14. Nc1 {[%emt 0:00:18]} Nbd7 {[%emt 0:00:20]} 15. Nb3 {[%emt 0:02:01]} O-O {[%emt 0:00:24]} 16. O-O {[%emt 0:00:37]} Rfc8 {[%emt 0:01:26]} 17. Rfc1 {[%emt 0:06:53] [#]} c5 $146 {[%emt 0:06:14]} ({Predecessor:} 17... h6 18. Qc2 g6 19. Ne1 Kg7 20. Nd3 Ra6 21. Nbc5 Nxc5 22. Nxc5 Ra7 23. Qe2 Nd7 24. Nxd7 Qxd7 {1-0 (106) Woelk,T (2348)-Aarav,D (2144) Cattolica 2022}) 18. dxc5 {[%emt 0:00:30]} Nxc5 {[%emt 0:00:08]} 19. Nxc5 {[%emt 0:00:34]} Rxc5 {[%emt 0:00:08]} 20. Nd4 {[%emt 0:01:19]} Rac8 {[%emt 0:05:30]} ({Don't do} 20... Rxc1+ 21. Rxc1 g6 22. h3 $14) 21. Rxc5 {[%emt 0:51:47]} Qxc5 {[%emt 0:04:06]} 22. Nb3 {[%emt 0:01:19]} Qc4 {[%emt 0:11:24]} 23. Qd1 {[%emt 0:00:11]} Qc2 {[%emt 0:06:46]} (23... Qa6 $11) 24. Qxc2 $16 {[%emt 0:00:10]} Rxc2 {[%emt 0:01:59]} 25. Nxa5 {[%emt 0:00:04]} Rxb2 {[%emt 0:00:34][%mdl 4096] Endgame [#] KRN-KRN} 26. Nc6 $1 {[%emt 0:00:10]} Ne4 {[%emt 0:04:59]} 27. a5 {[%emt 0:03:09]} Nc5 {[%emt 0:00:31]} 28. Kf1 {[%emt 0:02:15] Threatens to win with a6.} Na6 {[%emt 0:01:46]} 29. Ne7+ {[%emt 0:01:08]} (29. Rd1 $16) 29... Kf8 $11 {[%emt 0:00:08]} 30. Nxd5 {[%emt 0:00:06]} b3 {[%emt 0:16:35][%cal Bb4b3,Bb3b2][%mdl 32] aiming for ...Rc2.} 31. Ra3 {[%emt 0:05:08]} (31. e4 $11 {and White stays safe.}) 31... Rd2 $19 {[%emt 0:03:17][%mdl 1024] Black has strong compensation.} 32. Nc3 {[%emt 0:00:32]} b2 {[%emt 0:00:36] [#] And now ...Nc5 would win.} 33. Rb3 {[%emt 0:02:59]} Rc2 {[%emt 0:00:19]} 34. Nd1 {[%emt 0:01:31]} Rc1 {[%emt 0:01:06]} 35. Rxb2 {[%emt 0:00:25] Strongly threatening Ke2.} Rxd1+ {[%emt 0:00:04] KRN-KR} 36. Ke2 {[%emt 0:00:06]} Rd5 {[%emt 0:00:37]} 37. Ra2 {[%emt 0:00:23]} g6 {[%emt 0:00:19]} 38. e4 {[%emt 0:00:18]} Rc5 {[%emt 0:00:21]} 39. Kd3 {[%emt 0:00:42]} (39. h4 $17 {might work better.}) 39... Nb4+ {[%emt 0:01:08]} 40. Kd4 {[%emt 0:00:17]} Rxa5 {[%emt 0:00:12]} 41. Rb2 {[%emt 0:31:58]} Nc6+ {[%emt 0:30:17]} 42. Ke3 {[%emt 0:00:08]} Ne5 {[%emt 0:00:24] ...Nc4+ is the strong threat.} 43. Rb8+ {[%emt 0:00:18]} Kg7 {[%emt 0:00:06]} 44. h3 {[%emt 0:00:20]} Ra3+ {[%emt 0:02:16]} 45. Kf4 {[%emt 0:00:05]} (45. Ke2 $142) 45... Nd3+ {[%emt 0:00:42] Black is clearly winning.} 46. Kg3 {[%emt 0:00:18]} Nc5+ {[%emt 0:00:29]} 47. Kf4 {[%emt 0:00:32]} Ne6+ {[%emt 0:00:55]} 48. Kg4 {[%emt 0:00:29]} h5+ {[%emt 0:01:45]} 49. Kh4 {[%emt 0:00:06]} Nf4 {[%emt 0:00:17] Weighted Error Value: White=0.32/Black=0.05 (flawless)} 0-1

[Event "Swedish Championship U20 2022"]
[Site "Uppsala"]
[Date "2022.07.05"]
[Round "4.4"]
[White "Grahn, Vidar"]
[Black "Torngren, Gustav"]
[Result "0-1"]
[ECO "B87"]
[WhiteElo "2003"]
[BlackElo "2273"]
[Annotator "TA"]
[PlyCount "104"]
[EventDate "2022.07.01"]
[EventType "tourn"]
[EventCountry "SWE"]
[SourceTitle "playchess.com"]
[Source "ChessBase"]
[SourceQuality "1"]
[TimeControl "40/5400+30:1800+30"]

{[%evp 18,104,2,8,24,-17,0,-31,0,0,42,48,50,67,62,37,95,82,67,53,145,5,8,0,0,0,19,29,92,91,92,92,91,88,91,100,100,114,221,0,173,0,0,0,0,0,0,0,0,0,0,0,0,0,88,0,0,-54,0,-8,-8,-8,-8,-15,0,0,0,-29961,-29962,-29962,-29963,-5114,-5114,-5114,-5114,-3620,-551,-29974,-29975,-29976,-29977,-29977,-29977,-29977,-29978,-29978,-29978,-29977,-29977]} 1. e4 {[%emt 0:00:02]} c5 {[%emt 0:03:22]} 2. Nf3 {[%emt 0:00:05]} d6 {[%emt 0:01:08]} 3. d4 {[%emt 0:00:03]} cxd4 {[%emt 0:00:09]} 4. Nxd4 {[%emt 0:00:03]} Nf6 {[%emt 0:00:15]} 5. Nc3 {[%emt 0:00:04]} a6 {[%emt 0:00:48]} 6. Bc4 {[%emt 0:00:05]} e6 {[%emt 0:00:09]} 7. Bb3 {[%emt 0:00:03]} b5 {[%emt 0:00:11]} 8. O-O {[%emt 0:00:06]} Be7 {[%emt 0:00:26]} 9. Qf3 {[%emt 0:00:20]} Qc7 {[%emt 0:00:26]} 10. Qg3 {[%emt 0:00:20]} Rg8 {[%emt 0:00:34][%cal Og7g5] B87: Sicilian Scheveningen/Najdorf: 6 Bc4, with early ...b5.} (10... O-O {seems wilder.} 11. Bh6 Ne8 12. Rad1 Bf6) 11. f3 {[%emt 0:06:46]} Nbd7 {[%emt 0:00:35]} 12. Be3 {[%emt 0:02:03]} Nc5 {[%emt 0:00:53][%cal Og7g5] [#] Black is slightly better.} 13. a3 $146 {[%emt 0:02:23]} ({Predecessor:} 13. Rad1 g5 14. h3 Bb7 15. Ndxb5 axb5 16. Nxb5 Qc6 17. Nxd6+ Kf8 18. c4 Ncd7 19. e5 {0-1 (43) Weil,T (1986)-Thomas,J (1935) ICCF email 2019}) 13... Nxb3 {[%emt 0:04:57]} 14. cxb3 {[%emt 0:00:33]} e5 {[%emt 0:03:13]} 15. Nf5 {[%emt 0:03:23]} Bxf5 {[%emt 0:06:22]} 16. exf5 {[%emt 0:00:04]} Qd7 {[%emt 0:00:23]} (16... g6 $14) 17. f4 $16 {[%emt 0:04:38]} e4 {[%emt 0:01:05]} 18. Bd4 {[%emt 0:05:58]} d5 {[%emt 0:11:33]} (18... Qxf5 $14 19. Rad1 Kf8) 19. Bxf6 {[%emt 0:03:51]} (19. Rfd1 $16) 19... Bxf6 $11 {[%emt 0:00:27]} 20. Rad1 {[%emt 0:00:22]} Bxc3 {[%emt 0:06:15]} 21. Qxc3 {[%emt 0:00:26]} f6 {[%emt 0:00:44] Inhibits Qe5+.} 22. Rfe1 {[%emt 0:06:16]} Rd8 {[%emt 0:14:02]} (22... Qb7 $11 {remains equal.}) 23. Rxe4+ $1 $16 {[%emt 0:01:46]} dxe4 {[%emt 0:00:18]} 24. Rxd7 {[%emt 0:00:02]} Kxd7 {[%emt 0:00:21][%mdl 4096] Endgame [#] KQ-KRR} 25. Qd4+ $1 {[%emt 0:00:24]} Kc7 {[%emt 0:00:22]} 26. Qa7+ {[%emt 0:00:23]} Kc6 {[%emt 0:00:46]} 27. Qxa6+ {[%emt 0:00:07]} Kc5 {[%emt 0:00:15]} (27... Kc7 $16 28. Qa7+ Kc6) 28. b4+ $2 {[%emt 0:03:24]} (28. Qa7+ $18 Kc6 29. Kf2) 28... Kd4 $2 {[%emt 0:03:28] [#]} (28... Kc4 $1 $11) 29. Qb6+ $2 {[%emt 0:10:17]} (29. Kf2 $1 $18 Kc4 30. Ke2) 29... Kd3 $11 {[%emt 0:00:40]} 30. Kf2 {[%emt 0:03:25] Prevents e3+.} Rge8 {[%emt 0:01:03] aiming for ...e3+.} 31. Qxb5+ {[%emt 0:16:36]} Kd2 {[%emt 0:01:58] ( -> ...e3+)} 32. Qe2+ {[%emt 0:00:36]} Kc1 {[%emt 0:00:09] Active counter play!} 33. Qc4+ $1 {[%emt 0:03:39]} Kb1 {[%emt 0:00:23]} 34. Ke3 {[%emt 0:01:40]} Rd3+ {[%emt 0:00:47]} 35. Ke2 {[%emt 0:00:43] Threatens to win with b5.} Kxb2 {[%emt 0:00:11]} (35... Rdd8 $11 {keeps the balance.}) 36. Qc6 {[%emt 0:01:57]} ({Better is} 36. b5 $16) 36... Rdd8 {[%emt 0:00:10]} 37. Ke3 {[%emt 0:02:29]} (37. b5 $11) 37... Rc8 $1 $15 {[%emt 0:00:13]} 38. Qd7 $132 {[%emt 0:02:26][%mdl 2048] White is not holding back} Rc3+ {[%emt 0:00:15]} 39. Ke2 $1 {[%emt 0:00:06]} Rec8 {[%emt 0:01:20]} 40. Qxg7 {[%emt 0:01:51]} Rb3 {[%emt 0:16:03]} 41. Qxf6+ {[%emt 0:35:34]} Kb1 {[%emt 0:31:33] Strongly threatening ...Rc2+.} 42. Qe6 $2 {[%emt 0:01:33][%mdl 8192]} (42. Qe5 $11 Rc2+ 43. Kd1 Rd3+ 44. Ke1 Rc1+ 45. Kf2 Rc2+ 46. Ke1 Re3+ 47. Kf1) 42... Rc2+ {[%emt 0:00:31]} 43. Kf1 {[%emt 0:01:13]} Rd3 {[%emt 0:08:58][%cal Rd3d1]} ({Weaker is} 43... Rc1+ 44. Kf2 (44. Ke2 $2 Rc2+ 45. Kf1 Rd3 $19) 44... Rc2+ 45. Kg1 Rc1+ 46. Kf2 Rc2+ 47. Kg1 Rc1+ 48. Kf2 $11) 44. Qxe4 {[%emt 0:00:44]} Rd1+ {[%emt 0:00:23]} 45. Qe1 {[%emt 0:00:03]} Rxe1+ {[%emt 0:00:11]} 46. Kxe1 {[%emt 0:00:02]} Rxg2 $19 {[%emt 0:01:11] KR-KP} (46... Ka2 $142 47. g4 Kxa3) 47. f6 {[%emt 0:00:55] And now f7 would win.} Rg4 {[%emt 0:01:15] Black mates.} 48. Kd2 {[%emt 0:00:17]} Rxf4 {[%emt 0:00:14]} 49. Kc3 {[%emt 0:00:23]} Ka2 {[%emt 0:02:55]} 50. a4 {[%emt 0:00:24]} Ka3 {[%emt 0:00:46]} 51. a5 {[%emt 0:00:26]} Ka4 {[%emt 0:00:08]} 52. f7 {[%emt 0:00:35]} Kb5 {[%emt 0:00:32] Never resign too early!  Weighted Error Value: White=0.48/Black=0.34} 0-1